[Event "Titled Tuesday Blitz October 5 2021"]
[White "Jobava, Baadur"]
[Black "Horobetz, Graham"]
[WhiteFideId "13601520"]
[BlackFideId "2047322"]
[WhiteElo "2731"]
[BlackElo "2612"]
[Result "1/2-1/2"]
[Round "02"]
[TimeControl "180+1"]
[Date "2021.10.05"]
[WhiteClock "0:00:07"]
[BlackClock "0:00:11"]

1. d4 {[%clk 0:03:00]}  d5 {[%clk 0:02:58]} 2. c4 {[%clk 0:03:00]}  c6 {[%clk 0:02:57]} 3. Nf3 {[%clk 0:03:00]}  Nf6 {[%clk 0:02:58]} 4. cxd5 {[%clk 0:03:00]}  cxd5 {[%clk 0:02:57]} 5. Nc3 {[%clk 0:03:01]}  Nc6 {[%clk 0:02:57]} 6. Bf4 {[%clk 0:03:01]}  Bf5 {[%clk 0:02:57]} 7. e3 {[%clk 0:03:02]}  e6 {[%clk 0:02:57]} 8. Bb5 {[%clk 0:03:02]}  Nd7 {[%clk 0:02:56]} 9. Rc1 {[%clk 0:03:01]}  Rc8 {[%clk 0:02:56]} 10. O-O {[%clk 0:03:00]}  Be7 {[%clk 0:02:51]} 11. h3 {[%clk 0:03:00]}  O-O {[%clk 0:02:50]} 12. Na4 {[%clk 0:02:54]}  Nb4 {[%clk 0:02:24]} 13. Rxc8 {[%clk 0:02:33]}  Qxc8 {[%clk 0:02:24]} 14. a3 {[%clk 0:02:31]}  Bc2 {[%clk 0:01:37]} 15. Qd2 {[%clk 0:02:16]}  Bxa4 {[%clk 0:01:17]} 16. Bxa4 {[%clk 0:02:16]}  Nb6 {[%clk 0:01:17]} 17. Rc1 {[%clk 0:02:11]}  Nc4 {[%clk 0:01:07]} 18. Qe2 {[%clk 0:01:39]}  Nc6 {[%clk 0:00:44]} 19. Bb5 {[%clk 0:01:38]}  Nd6 {[%clk 0:00:33]} 20. Bxc6 {[%clk 0:01:36]}  bxc6 {[%clk 0:00:32]} 21. Ne5 {[%clk 0:01:37]}  Qb7 {[%clk 0:00:21]} 22. Nxc6 {[%clk 0:01:06]}  Nc4 {[%clk 0:00:21]} 23. Nxe7+ {[%clk 0:01:01]}  Qxe7 {[%clk 0:00:22]} 24. Rc3 {[%clk 0:00:29]}  a5 {[%clk 0:00:20]} 25. e4 {[%clk 0:00:25]}  Qd7 {[%clk 0:00:20]} 26. Rg3 {[%clk 0:00:23]}  f6 {[%clk 0:00:18]} 27. Bh6 {[%clk 0:00:21]}  Rf7 {[%clk 0:00:17]} 28. exd5 {[%clk 0:00:21]}  exd5 {[%clk 0:00:17]} 29. Bc1 {[%clk 0:00:18]}  Re7 {[%clk 0:00:17]} 30. Qd1 {[%clk 0:00:15]}  a4 {[%clk 0:00:13]} 31. Kh2 {[%clk 0:00:15]}  Qb5 {[%clk 0:00:13]} 32. Qg4 {[%clk 0:00:12]}  Qd7 {[%clk 0:00:11]} 33. Qxd7 {[%clk 0:00:11]}  Rxd7 {[%clk 0:00:12]} 34. b3 {[%clk 0:00:11]}  axb3 {[%clk 0:00:09]} 35. Rxb3 {[%clk 0:00:12]}  Kf7 {[%clk 0:00:09]} 36. a4 {[%clk 0:00:12]}  Ra7 {[%clk 0:00:09]} 37. Rb4 {[%clk 0:00:12]}  Ke6 {[%clk 0:00:09]} 38. Kg3 {[%clk 0:00:13]}  Kd7 {[%clk 0:00:09]} 39. h4 {[%clk 0:00:13]}  Kc6 {[%clk 0:00:10]} 40. h5 {[%clk 0:00:13]}  g6 {[%clk 0:00:09]} 41. h6 {[%clk 0:00:14]}  Rb7 {[%clk 0:00:08]} 42. Rxb7 {[%clk 0:00:13]}  Kxb7 {[%clk 0:00:09]} 43. Kf4 {[%clk 0:00:13]}  Kc6 {[%clk 0:00:08]} 44. g4 {[%clk 0:00:13]}  Kd6 {[%clk 0:00:08]} 45. g5 {[%clk 0:00:12]}  f5 {[%clk 0:00:08]} 46. Kf3 {[%clk 0:00:10]}  Kc6 {[%clk 0:00:08]} 47. Ke2 {[%clk 0:00:10]}  Kb6 {[%clk 0:00:09]} 48. Bd2 {[%clk 0:00:11]}  Nb2 {[%clk 0:00:07]} 49. a5+ {[%clk 0:00:10]}  Kb5 {[%clk 0:00:08]} 50. Be1 {[%clk 0:00:10]}  Nc4 {[%clk 0:00:08]} 51. Kf3 {[%clk 0:00:11]}  Ka6 {[%clk 0:00:07]} 52. Kf4 {[%clk 0:00:11]}  Kb5 {[%clk 0:00:08]} 53. Kf3 {[%clk 0:00:10]}  Ka6 {[%clk 0:00:09]} 54. Kf4 {[%clk 0:00:09]}  Kb5 {[%clk 0:00:09]} 55. Bc3 {[%clk 0:00:09]}  Ka6 {[%clk 0:00:09]} 56. Kf3 {[%clk 0:00:09]}  Kb5 {[%clk 0:00:10]} 57. Kf4 {[%clk 0:00:08]}  Ka6 {[%clk 0:00:11]} 58. Kf3 {[%clk 0:00:07]}  Kb5 {[%clk 0:00:11]} 59. Kf4 {[%clk 0:00:07]} 1/2-1/2


[Site "https://www.chess.com"]

[Event "Titled Tuesday Blitz October 5 2021"]
[White "Kadam, Om Manish"]
[Black "Wilson, Elvin"]
[WhiteFideId "45076294"]
[BlackFideId "2014874"]
[WhiteElo "1729"]
[BlackElo "2322"]
[Result "1-0"]
[Round "02"]
[TimeControl "180+1"]
[Date "2021.10.05"]
[WhiteClock "0:00:20"]
[BlackClock "0:00:01"]

1. e4 {[%clk 0:03:00]}  e6 {[%clk 0:02:59]} 2. d4 {[%clk 0:03:00]}  d5 {[%clk 0:02:55]} 3. Nd2 {[%clk 0:03:01]}  c5 {[%clk 0:02:53]} 4. exd5 {[%clk 0:03:01]}  Qxd5 {[%clk 0:02:52]} 5. Ngf3 {[%clk 0:03:01]}  cxd4 {[%clk 0:02:52]} 6. Bc4 {[%clk 0:03:01]}  Qd6 {[%clk 0:02:53]} 7. O-O {[%clk 0:03:01]}  Nf6 {[%clk 0:02:53]} 8. Nb3 {[%clk 0:03:01]}  Nc6 {[%clk 0:02:54]} 9. Qe2 {[%clk 0:03:01]}  Be7 {[%clk 0:02:51]} 10. Rd1 {[%clk 0:03:01]}  O-O {[%clk 0:02:47]} 11. Nbxd4 {[%clk 0:03:01]}  Nxd4 {[%clk 0:02:47]} 12. Rxd4 {[%clk 0:03:02]}  Qc7 {[%clk 0:02:46]} 13. Bf4 {[%clk 0:03:01]}  Qb6 {[%clk 0:02:44]} 14. Bb3 {[%clk 0:03:02]}  Bd7 {[%clk 0:02:39]} 15. Rad1 {[%clk 0:03:00]}  Bc6 {[%clk 0:02:35]} 16. Ne5 {[%clk 0:02:59]}  Bd5 {[%clk 0:02:33]} 17. Bxd5 {[%clk 0:02:37]}  exd5 {[%clk 0:02:23]} 18. c3 {[%clk 0:02:31]}  Bc5 {[%clk 0:02:21]} 19. R4d3 {[%clk 0:02:23]}  Rfe8 {[%clk 0:02:17]} 20. Bg3 {[%clk 0:02:08]}  a5 {[%clk 0:02:01]} 21. Qf3 {[%clk 0:01:35]}  Qe6 {[%clk 0:01:53]} 22. h3 {[%clk 0:01:23]}  Ne4 {[%clk 0:01:29]} 23. Rxd5 {[%clk 0:01:22]}  Nxg3 {[%clk 0:01:13]} 24. Qxg3 {[%clk 0:01:22]}  b6 {[%clk 0:01:07]} 25. Nd7 {[%clk 0:01:18]}  Be7 {[%clk 0:00:55]} 26. Qf3 {[%clk 0:01:15]}  Rac8 {[%clk 0:00:50]} 27. Re5 {[%clk 0:01:09]}  Qg6 {[%clk 0:00:43]} 28. Rde1 {[%clk 0:01:08]}  Qd6 {[%clk 0:00:37]} 29. Nxb6 {[%clk 0:01:05]}  Qxb6 {[%clk 0:00:33]} 30. Rxe7 {[%clk 0:01:05]}  Rf8 {[%clk 0:00:28]} 31. R1e2 {[%clk 0:01:01]}  a4 {[%clk 0:00:23]} 32. Qe3 {[%clk 0:00:27]}  Qd6 {[%clk 0:00:22]} 33. Qd4 {[%clk 0:00:27]}  Qg6 {[%clk 0:00:20]} 34. Qxa4 {[%clk 0:00:26]}  Qb1+ {[%clk 0:00:20]} 35. Kh2 {[%clk 0:00:26]}  Qf5 {[%clk 0:00:19]} 36. Qg4 {[%clk 0:00:27]}  Qd5 {[%clk 0:00:18]} 37. b3 {[%clk 0:00:22]}  h6 {[%clk 0:00:16]} 38. c4 {[%clk 0:00:21]}  Qd6+ {[%clk 0:00:17]} 39. Qg3 {[%clk 0:00:21]}  Qf6 {[%clk 0:00:16]} 40. Qe5 {[%clk 0:00:20]}  Qb6 {[%clk 0:00:16]} 41. Qf5 {[%clk 0:00:20]}  Qc6 {[%clk 0:00:15]} 42. R2e3 {[%clk 0:00:20]}  Ra8 {[%clk 0:00:15]} 43. Rf3 {[%clk 0:00:20]}  Rxa2 {[%clk 0:00:12]} 44. Rxf7 {[%clk 0:00:20]}  Qd6+ {[%clk 0:00:12]} 45. g3 {[%clk 0:00:20]}  Rxf7 {[%clk 0:00:12]} 46. Qxf7+ {[%clk 0:00:21]}  Kh7 {[%clk 0:00:12]} 47. Qf4 {[%clk 0:00:21]}  Qc6 {[%clk 0:00:11]} 48. Qf5+ {[%clk 0:00:21]}  Kg8 {[%clk 0:00:11]} 49. Qd5+ {[%clk 0:00:20]}  Qxd5 {[%clk 0:00:10]} 50. cxd5 {[%clk 0:00:21]}  Rd2 {[%clk 0:00:10]} 51. b4 {[%clk 0:00:22]}  Rxd5 {[%clk 0:00:10]} 52. Rb3 {[%clk 0:00:22]}  Rb5 {[%clk 0:00:10]} 53. f4 {[%clk 0:00:23]}  Kf7 {[%clk 0:00:11]} 54. Kg2 {[%clk 0:00:23]}  Ke6 {[%clk 0:00:11]} 55. Kf3 {[%clk 0:00:24]}  Kd5 {[%clk 0:00:12]} 56. g4 {[%clk 0:00:25]}  Kc4 {[%clk 0:00:12]} 57. Rb1 {[%clk 0:00:25]}  h5 {[%clk 0:00:07]} 58. f5 {[%clk 0:00:25]}  hxg4+ {[%clk 0:00:07]} 59. hxg4 {[%clk 0:00:26]}  Kd5 {[%clk 0:00:06]} 60. Kf4 {[%clk 0:00:26]}  Kd6 {[%clk 0:00:05]} 61. g5 {[%clk 0:00:26]}  Ke7 {[%clk 0:00:06]} 62. Re1+ {[%clk 0:00:26]}  Kf7 {[%clk 0:00:06]} 63. g6+ {[%clk 0:00:25]}  Kf8 {[%clk 0:00:04]} 64. Re4 {[%clk 0:00:25]}  Rb6 {[%clk 0:00:03]} 65. Kg5 {[%clk 0:00:25]}  Rb5 {[%clk 0:00:03]} 66. Rc4 {[%clk 0:00:23]}  Rb6 {[%clk 0:00:02]} 67. Rc8+ {[%clk 0:00:23]}  Ke7 {[%clk 0:00:02]} 68. Rc7+ {[%clk 0:00:24]}  Kf8 {[%clk 0:00:02]} 69. Rf7+ {[%clk 0:00:22]}  Kg8 {[%clk 0:00:03]} 70. Rd7 {[%clk 0:00:22]}  Rb8 {[%clk 0:00:01]} 71. f6 {[%clk 0:00:20]}  gxf6+ {[%clk 0:00:01]} 72. Kxf6 {[%clk 0:00:21]}  Rb6+ {[%clk 0:00:01]} 73. Kg5 {[%clk 0:00:19]}  Rb8 {[%clk 0:00:01]} 74. Kh6 {[%clk 0:00:20]} 1-0


[Site "https://www.chess.com"]

[Event "Titled Tuesday Blitz October 5 2021"]
[White "Kamsky, Gata"]
[Black "Mezentsev, Ivan"]
[WhiteFideId "2000024"]
[BlackFideId "13706195"]
[WhiteElo "2603"]
[BlackElo "2295"]
[Result "1/2-1/2"]
[Round "02"]
[TimeControl "180+1"]
[Date "2021.10.05"]
[WhiteClock "0:00:19"]
[BlackClock "0:00:02"]

1. e4 {[%clk 0:03:00]}  c5 {[%clk 0:02:57]} 2. Nf3 {[%clk 0:02:58]}  e6 {[%clk 0:02:57]} 3. g3 {[%clk 0:02:57]}  Nf6 {[%clk 0:02:55]} 4. Qe2 {[%clk 0:02:52]}  Be7 {[%clk 0:02:53]} 5. Bg2 {[%clk 0:02:52]}  d5 {[%clk 0:02:53]} 6. e5 {[%clk 0:02:48]}  Nfd7 {[%clk 0:02:52]} 7. O-O {[%clk 0:02:48]}  Nc6 {[%clk 0:02:51]} 8. d3 {[%clk 0:02:25]}  b5 {[%clk 0:02:41]} 9. c4 {[%clk 0:02:22]}  bxc4 {[%clk 0:02:30]} 10. dxc4 {[%clk 0:02:22]}  Nb6 {[%clk 0:02:31]} 11. cxd5 {[%clk 0:02:19]}  Nxd5 {[%clk 0:02:30]} 12. Na3 {[%clk 0:02:16]}  O-O {[%clk 0:02:29]} 13. Rd1 {[%clk 0:02:14]}  Qc7 {[%clk 0:02:03]} 14. Bg5 {[%clk 0:02:06]}  Bxg5 {[%clk 0:01:46]} 15. Nxg5 {[%clk 0:02:05]}  Qxe5 {[%clk 0:01:44]} 16. Qxe5 {[%clk 0:02:00]}  Nxe5 {[%clk 0:01:45]} 17. Ne4 {[%clk 0:01:50]}  c4 {[%clk 0:01:36]} 18. Nd6 {[%clk 0:01:30]}  Ba6 {[%clk 0:01:30]} 19. f4 {[%clk 0:01:21]}  Ng4 {[%clk 0:01:21]} 20. Ndxc4 {[%clk 0:01:08]}  Rac8 {[%clk 0:01:19]} 21. Rdc1 {[%clk 0:01:04]}  Nde3 {[%clk 0:01:14]} 22. Nxe3 {[%clk 0:01:03]}  Nxe3 {[%clk 0:01:15]} 23. Bf3 {[%clk 0:01:02]}  Rfd8 {[%clk 0:01:07]} 24. Kf2 {[%clk 0:01:01]}  Nf5 {[%clk 0:01:05]} 25. Rxc8 {[%clk 0:01:00]}  Rxc8 {[%clk 0:01:05]} 26. Rd1 {[%clk 0:01:00]}  g6 {[%clk 0:00:16]} 27. g4 {[%clk 0:00:59]}  Nh4 {[%clk 0:00:13]} 28. Bh1 {[%clk 0:00:54]}  h6 {[%clk 0:00:12]} 29. Rd7 {[%clk 0:00:53]}  Rc1 {[%clk 0:00:11]} 30. Bg2 {[%clk 0:00:44]}  Ra1 {[%clk 0:00:05]} 31. Ba8 {[%clk 0:00:37]}  Rxa2 {[%clk 0:00:03]} 32. Rd2 {[%clk 0:00:37]}  Kg7 {[%clk 0:00:01]} 33. Ke3 {[%clk 0:00:36]}  g5 {[%clk 0:00:02]} 34. fxg5 {[%clk 0:00:35]}  hxg5 {[%clk 0:00:03]} 35. Rd6 {[%clk 0:00:32]}  Bf1 {[%clk 0:00:02]} 36. Rd2 {[%clk 0:00:31]}  Bh3 {[%clk 0:00:01]} 37. Nc4 {[%clk 0:00:24]}  Bxg4 {[%clk 0:00:01]} 38. Ne5 {[%clk 0:00:24]}  Bf5 {[%clk 0:00:01]} 39. Rd7 {[%clk 0:00:23]}  Kf6 {[%clk 0:00:01]} 40. Nxf7 {[%clk 0:00:22]}  Rxb2 {[%clk 0:00:02]} 41. Nd6 {[%clk 0:00:22]}  Rb3+ {[%clk 0:00:02]} 42. Kd4 {[%clk 0:00:21]}  Nf3+ {[%clk 0:00:02]} 43. Kc5 {[%clk 0:00:21]}  Rc3+ {[%clk 0:00:02]} 44. Kb4 {[%clk 0:00:21]}  Rd3 {[%clk 0:00:01]} 45. Ne8+ {[%clk 0:00:20]}  Ke5 {[%clk 0:00:02]} 46. Rxd3 {[%clk 0:00:21]}  Bxd3 {[%clk 0:00:02]} 47. Bxf3 {[%clk 0:00:22]}  Kf4 {[%clk 0:00:02]} 48. Bh5 {[%clk 0:00:22]}  g4 {[%clk 0:00:02]} 49. Ng7 {[%clk 0:00:21]}  Bf5 {[%clk 0:00:01]} 50. Nxf5 {[%clk 0:00:19]}  exf5 {[%clk 0:00:01]} 51. Bg6 {[%clk 0:00:19]}  g3 {[%clk 0:00:01]} 52. hxg3+ {[%clk 0:00:19]}  Kxg3 {[%clk 0:00:02]} 53. Bxf5 {[%clk 0:00:19]}  a5+ {[%clk 0:00:02]} 54. Kxa5 {[%clk 0:00:19]} 1/2-1/2


[Site "https://www.chess.com"]

[Event "Titled Tuesday Blitz October 5 2021"]
[White "Katzir, Moshe"]
[Black "Aradhya, Garg"]
[WhiteFideId "2802260"]
[BlackFideId "25006746"]
[WhiteElo "2097"]
[BlackElo "2146"]
[Result "0-1"]
[Round "02"]
[TimeControl "180+1"]
[Date "2021.10.05"]
[WhiteClock "0:00:14"]
[BlackClock "0:01:15"]

1. e4 {[%clk 0:03:00]}  e5 {[%clk 0:02:59]} 2. Nc3 {[%clk 0:02:59]}  Nc6 {[%clk 0:02:59]} 3. g3 {[%clk 0:02:58]}  Bc5 {[%clk 0:02:56]} 4. Bg2 {[%clk 0:02:57]}  h5 {[%clk 0:02:55]} 5. h3 {[%clk 0:02:53]}  Nge7 {[%clk 0:02:54]} 6. Nge2 {[%clk 0:02:52]}  d6 {[%clk 0:02:54]} 7. d3 {[%clk 0:02:51]}  a5 {[%clk 0:02:53]} 8. Bg5 {[%clk 0:02:35]}  Be6 {[%clk 0:02:47]} 9. Nd5 {[%clk 0:02:33]}  f6 {[%clk 0:02:47]} 10. Bd2 {[%clk 0:02:28]}  Qd7 {[%clk 0:02:38]} 11. c3 {[%clk 0:02:26]}  Bf7 {[%clk 0:02:23]} 12. Qa4 {[%clk 0:02:12]}  Nxd5 {[%clk 0:02:22]} 13. exd5 {[%clk 0:02:10]}  Ne7 {[%clk 0:02:22]} 14. Qxd7+ {[%clk 0:01:51]}  Kxd7 {[%clk 0:02:23]} 15. c4 {[%clk 0:01:49]}  Nf5 {[%clk 0:02:23]} 16. b3 {[%clk 0:01:42]}  c6 {[%clk 0:02:20]} 17. dxc6+ {[%clk 0:01:39]}  bxc6 {[%clk 0:02:21]} 18. Rb1 {[%clk 0:01:36]}  d5 {[%clk 0:02:18]} 19. Nc3 {[%clk 0:01:30]}  Ne7 {[%clk 0:02:12]} 20. Na4 {[%clk 0:01:28]}  Bd4 {[%clk 0:02:09]} 21. c5 {[%clk 0:01:25]}  Ra7 {[%clk 0:02:05]} 22. O-O {[%clk 0:01:18]}  Rb8 {[%clk 0:02:04]} 23. Kh2 {[%clk 0:01:15]}  Bg6 {[%clk 0:02:00]} 24. Rbd1 {[%clk 0:00:51]}  Bxd3 {[%clk 0:01:57]} 25. Rh1 {[%clk 0:00:43]}  Be2 {[%clk 0:01:54]} 26. Rc1 {[%clk 0:00:37]}  Bb5 {[%clk 0:01:51]} 27. Nb6+ {[%clk 0:00:35]}  Ke8 {[%clk 0:01:48]} 28. f4 {[%clk 0:00:34]}  e4 {[%clk 0:01:47]} 29. Rhe1 {[%clk 0:00:32]}  Bf2 {[%clk 0:01:39]} 30. Rh1 {[%clk 0:00:28]}  Nf5 {[%clk 0:01:20]} 31. Be1 {[%clk 0:00:24]}  Be3 {[%clk 0:01:17]} 32. Rc2 {[%clk 0:00:20]}  Bd3 {[%clk 0:01:17]} 33. Rc3 {[%clk 0:00:19]}  Nd4 {[%clk 0:01:15]} 34. Bf1 {[%clk 0:00:14]}  Nf3+ {[%clk 0:01:14]} 35. Kg2 {[%clk 0:00:14]}  Nxe1+ {[%clk 0:01:14]} 36. Kh2 {[%clk 0:00:14]}  Nf3+ {[%clk 0:01:15]} 0-1


[Site "https://www.chess.com"]

[Event "Titled Tuesday Blitz October 5 2021"]
[White "Kovalev, Vladislav"]
[Black "Gracia Alvarez, Gerardo Antonio"]
[WhiteFideId "13504398"]
[BlackFideId "5109124"]
[WhiteElo "2573"]
[BlackElo "2148"]
[Result "1-0"]
[Round "02"]
[TimeControl "180+1"]
[Date "2021.10.05"]
[WhiteClock "0:00:32"]
[BlackClock "0:00:11"]

1. e4 {[%clk 0:03:00]}  c5 {[%clk 0:02:59]} 2. Be2 {[%clk 0:03:00]}  Nc6 {[%clk 0:02:56]} 3. d3 {[%clk 0:03:01]}  g6 {[%clk 0:02:56]} 4. f4 {[%clk 0:03:02]}  Bg7 {[%clk 0:02:56]} 5. Nf3 {[%clk 0:03:03]}  e6 {[%clk 0:02:56]} 6. O-O {[%clk 0:03:03]}  Nge7 {[%clk 0:02:56]} 7. c3 {[%clk 0:03:03]}  d5 {[%clk 0:02:55]} 8. Be3 {[%clk 0:03:03]}  b6 {[%clk 0:02:49]} 9. Kh1 {[%clk 0:03:02]}  O-O {[%clk 0:02:49]} 10. Qe1 {[%clk 0:03:02]}  dxe4 {[%clk 0:02:37]} 11. dxe4 {[%clk 0:03:03]}  f5 {[%clk 0:02:38]} 12. e5 {[%clk 0:02:45]}  Nd5 {[%clk 0:02:35]} 13. Bd2 {[%clk 0:02:45]}  Bb7 {[%clk 0:02:33]} 14. Na3 {[%clk 0:02:32]}  Qe7 {[%clk 0:02:18]} 15. Nc4 {[%clk 0:02:29]}  Ba6 {[%clk 0:02:13]} 16. a4 {[%clk 0:02:20]}  Bxc4 {[%clk 0:02:09]} 17. Bxc4 {[%clk 0:02:21]}  Rad8 {[%clk 0:02:09]} 18. Qe2 {[%clk 0:02:17]}  Qc7 {[%clk 0:02:01]} 19. Rad1 {[%clk 0:02:15]}  Na5 {[%clk 0:01:54]} 20. Ba2 {[%clk 0:02:15]}  Qc6 {[%clk 0:01:38]} 21. Qb5 {[%clk 0:02:12]}  Rfe8 {[%clk 0:01:21]} 22. Bc1 {[%clk 0:01:59]}  Qxb5 {[%clk 0:01:18]} 23. axb5 {[%clk 0:02:00]}  Bh6 {[%clk 0:01:18]} 24. g3 {[%clk 0:01:58]}  Nc7 {[%clk 0:01:09]} 25. Kg2 {[%clk 0:01:18]}  Kf7 {[%clk 0:01:09]} 26. c4 {[%clk 0:01:13]}  Ke7 {[%clk 0:01:04]} 27. Bd2 {[%clk 0:01:06]}  Nb7 {[%clk 0:01:03]} 28. Bc3 {[%clk 0:01:04]}  Rxd1 {[%clk 0:01:01]} 29. Rxd1 {[%clk 0:01:04]}  Rd8 {[%clk 0:01:02]} 30. Ra1 {[%clk 0:01:00]}  a5 {[%clk 0:00:48]} 31. h4 {[%clk 0:01:00]}  Kf7 {[%clk 0:00:43]} 32. Bb3 {[%clk 0:00:58]}  Bf8 {[%clk 0:00:37]} 33. h5 {[%clk 0:00:54]}  Be7 {[%clk 0:00:36]} 34. Rh1 {[%clk 0:00:51]}  Kg7 {[%clk 0:00:36]} 35. Bc2 {[%clk 0:00:51]}  Rd7 {[%clk 0:00:34]} 36. Kf2 {[%clk 0:00:48]}  Rd8 {[%clk 0:00:34]} 37. Ke2 {[%clk 0:00:49]}  Rd7 {[%clk 0:00:34]} 38. Ke3 {[%clk 0:00:48]}  Rd8 {[%clk 0:00:34]} 39. Bd1 {[%clk 0:00:49]}  Rd7 {[%clk 0:00:34]} 40. Be2 {[%clk 0:00:50]}  Rd8 {[%clk 0:00:34]} 41. Ne1 {[%clk 0:00:42]}  Rd7 {[%clk 0:00:33]} 42. Nd3 {[%clk 0:00:42]}  g5 {[%clk 0:00:26]} 43. h6+ {[%clk 0:00:43]}  Kg8 {[%clk 0:00:25]} 44. b3 {[%clk 0:00:40]}  g4 {[%clk 0:00:24]} 45. Nb2 {[%clk 0:00:40]}  Rd8 {[%clk 0:00:20]} 46. Na4 {[%clk 0:00:41]}  Na8 {[%clk 0:00:21]} 47. Bf1 {[%clk 0:00:39]}  Rd7 {[%clk 0:00:14]} 48. Bg2 {[%clk 0:00:39]}  Kf8 {[%clk 0:00:14]} 49. Bc6 {[%clk 0:00:36]}  Rc7 {[%clk 0:00:15]} 50. Rd1 {[%clk 0:00:37]}  Bd8 {[%clk 0:00:11]} 51. Bxb7 {[%clk 0:00:32]} 1-0


[Site "https://www.chess.com"]

[Event "Titled Tuesday Blitz October 5 2021"]
[White "Lauridsen, Jesper Morch"]
[Black "Jaracz, Pawel"]
[WhiteFideId "1401890"]
[BlackFideId "1102222"]
[WhiteElo "2300"]
[BlackElo "2495"]
[Result "0-1"]
[Round "02"]
[TimeControl "180+1"]
[Date "2021.10.05"]
[WhiteClock "0:00:01"]
[BlackClock "0:01:08"]

1. d4 {[%clk 0:03:00]}  d5 {[%clk 0:02:58]} 2. Bf4 {[%clk 0:02:58]}  c5 {[%clk 0:02:57]} 3. e3 {[%clk 0:02:58]}  Nc6 {[%clk 0:02:56]} 4. c3 {[%clk 0:02:57]}  Qb6 {[%clk 0:02:54]} 5. Qb3 {[%clk 0:02:55]}  c4 {[%clk 0:02:54]} 6. Qxb6 {[%clk 0:02:44]}  axb6 {[%clk 0:02:54]} 7. Na3 {[%clk 0:02:45]}  Bf5 {[%clk 0:02:41]} 8. Nb5 {[%clk 0:02:37]}  Ra5 {[%clk 0:02:37]} 9. a4 {[%clk 0:02:15]}  Nf6 {[%clk 0:02:24]} 10. Nf3 {[%clk 0:02:08]}  e6 {[%clk 0:02:22]} 11. Bc7 {[%clk 0:02:01]}  Nd7 {[%clk 0:02:20]} 12. Bd6 {[%clk 0:01:31]}  Bxd6 {[%clk 0:02:11]} 13. Nxd6+ {[%clk 0:01:31]}  Ke7 {[%clk 0:02:11]} 14. Nxf5+ {[%clk 0:01:25]}  exf5 {[%clk 0:02:11]} 15. Be2 {[%clk 0:01:24]}  Rha8 {[%clk 0:02:10]} 16. Bd1 {[%clk 0:01:18]}  b5 {[%clk 0:02:10]} 17. O-O {[%clk 0:00:49]}  bxa4 {[%clk 0:02:05]} 18. Bc2 {[%clk 0:00:41]}  g6 {[%clk 0:02:00]} 19. Ng5 {[%clk 0:00:38]}  a3 {[%clk 0:01:50]} 20. b4 {[%clk 0:00:33]}  cxb3 {[%clk 0:01:47]} 21. Bxb3 {[%clk 0:00:33]}  Rb5 {[%clk 0:01:45]} 22. Ba2 {[%clk 0:00:30]}  Nb6 {[%clk 0:01:37]} 23. Rfb1 {[%clk 0:00:23]}  Raa5 {[%clk 0:01:36]} 24. f3 {[%clk 0:00:19]}  Rb2 {[%clk 0:01:33]} 25. e4 {[%clk 0:00:15]}  Rab5 {[%clk 0:01:19]} 26. Rxb2 {[%clk 0:00:11]}  axb2 {[%clk 0:01:19]} 27. Rb1 {[%clk 0:00:11]}  Na4 {[%clk 0:01:17]} 28. c4 {[%clk 0:00:04]}  dxc4 {[%clk 0:01:14]} 29. Bxc4 {[%clk 0:00:04]}  Rb4 {[%clk 0:01:14]} 30. Bxf7 {[%clk 0:00:01]}  Nxd4 {[%clk 0:01:13]} 31. exf5 {[%clk 0:00:01]}  gxf5 {[%clk 0:01:08]} 0-1


[Site "https://www.chess.com"]

[Event "Titled Tuesday Blitz October 5 2021"]
[White "Lewtak, Damian"]
[Black "Zhigalko, Sergei"]
[WhiteFideId "1141724"]
[BlackFideId "13502956"]
[WhiteElo "2203"]
[BlackElo "2662"]
[Result "1-0"]
[Round "02"]
[TimeControl "180+1"]
[Date "2021.10.05"]
[WhiteClock "0:00:32"]
[BlackClock "0:00:01"]

1. d4 {[%clk 0:03:00]}  Nf6 {[%clk 0:03:00]} 2. c3 {[%clk 0:03:00]}  b6 {[%clk 0:02:57]} 3. Bf4 {[%clk 0:02:59]}  Bb7 {[%clk 0:02:57]} 4. h3 {[%clk 0:02:59]}  e6 {[%clk 0:02:56]} 5. e3 {[%clk 0:03:00]}  Bd6 {[%clk 0:02:56]} 6. Bxd6 {[%clk 0:02:57]}  cxd6 {[%clk 0:02:57]} 7. Nd2 {[%clk 0:02:57]}  O-O {[%clk 0:02:57]} 8. Ngf3 {[%clk 0:02:55]}  d5 {[%clk 0:02:51]} 9. c4 {[%clk 0:02:53]}  d6 {[%clk 0:02:46]} 10. Bd3 {[%clk 0:02:49]}  Nbd7 {[%clk 0:02:46]} 11. O-O {[%clk 0:02:48]}  Qe7 {[%clk 0:02:46]} 12. Re1 {[%clk 0:02:47]}  Rfc8 {[%clk 0:02:41]} 13. cxd5 {[%clk 0:02:36]}  Nxd5 {[%clk 0:02:39]} 14. a3 {[%clk 0:02:36]}  Rc7 {[%clk 0:02:31]} 15. Rc1 {[%clk 0:02:35]}  Rac8 {[%clk 0:02:31]} 16. Rxc7 {[%clk 0:02:34]}  Rxc7 {[%clk 0:02:31]} 17. Qb1 {[%clk 0:02:35]}  h6 {[%clk 0:02:26]} 18. Rc1 {[%clk 0:02:28]}  Qd8 {[%clk 0:02:26]} 19. Ne4 {[%clk 0:02:21]}  N7f6 {[%clk 0:02:22]} 20. Nxf6+ {[%clk 0:02:16]}  Nxf6 {[%clk 0:02:21]} 21. Nd2 {[%clk 0:02:13]}  Qc8 {[%clk 0:02:19]} 22. Rxc7 {[%clk 0:02:13]}  Qxc7 {[%clk 0:02:20]} 23. Qc2 {[%clk 0:02:13]}  Qxc2 {[%clk 0:02:17]} 24. Bxc2 {[%clk 0:02:14]}  Kf8 {[%clk 0:02:17]} 25. f3 {[%clk 0:01:55]}  Ke7 {[%clk 0:02:13]} 26. Kf2 {[%clk 0:01:55]}  Ba6 {[%clk 0:02:09]} 27. Bd1 {[%clk 0:01:51]}  e5 {[%clk 0:02:07]} 28. Be2 {[%clk 0:01:47]}  Bxe2 {[%clk 0:02:07]} 29. Kxe2 {[%clk 0:01:47]}  Nd5 {[%clk 0:02:07]} 30. dxe5 {[%clk 0:01:44]}  dxe5 {[%clk 0:02:07]} 31. Kd3 {[%clk 0:01:42]}  Ke6 {[%clk 0:02:05]} 32. g3 {[%clk 0:01:41]}  h5 {[%clk 0:02:04]} 33. e4 {[%clk 0:01:38]}  Ne7 {[%clk 0:02:00]} 34. Kc4 {[%clk 0:01:29]}  a6 {[%clk 0:01:54]} 35. a4 {[%clk 0:01:16]}  h4 {[%clk 0:01:17]} 36. gxh4 {[%clk 0:01:17]}  Ng6 {[%clk 0:01:17]} 37. a5 {[%clk 0:01:09]}  bxa5 {[%clk 0:00:50]} 38. Kc5 {[%clk 0:01:09]}  Nxh4 {[%clk 0:00:44]} 39. Kb6 {[%clk 0:01:07]}  Ng2 {[%clk 0:00:29]} 40. Kxa5 {[%clk 0:01:02]}  Nf4 {[%clk 0:00:28]} 41. Kxa6 {[%clk 0:00:59]}  Nxh3 {[%clk 0:00:28]} 42. b4 {[%clk 0:00:59]}  Kd7 {[%clk 0:00:21]} 43. b5 {[%clk 0:00:58]}  Nf4 {[%clk 0:00:07]} 44. b6 {[%clk 0:00:55]}  Ne6 {[%clk 0:00:06]} 45. b7 {[%clk 0:00:39]}  Nc5+ {[%clk 0:00:06]} 46. Kb6 {[%clk 0:00:39]}  Nxb7 {[%clk 0:00:07]} 47. Kxb7 {[%clk 0:00:40]}  g6 {[%clk 0:00:08]} 48. Kb6 {[%clk 0:00:40]}  Kd6 {[%clk 0:00:07]} 49. Kb5 {[%clk 0:00:40]}  f5 {[%clk 0:00:03]} 50. Nf1 {[%clk 0:00:39]}  Ke6 {[%clk 0:00:01]} 51. Kc5 {[%clk 0:00:36]}  g5 {[%clk 0:00:01]} 52. Ne3 {[%clk 0:00:32]} 1-0


[Site "https://www.chess.com"]